bitfinex-derivatives/quotes_SOLF0:USTF0_20240907
["timestamp","ask_amount","ask_price","bid_price","bid_amount"]
[1725684873417,0.69065733,125.82,125.75,9.81]
[1725684873621,2.05945733,125.82,125.75,9.81]
[1725684873823,0.69065733,125.81,125.75,9.81]
[1725684874023,0.69065733,125.81,125.73,4.0086]
[1725684874210,0.69065733,125.81,125.75,9.81]
[1725684874618,0.6907443,125.8,125.75,9.81]
[1725684874923,3.9768,125.76,125.75,9.81]
[1725684875715,3.9766,125.77,125.75,9.81]
[1725684877025,3.9768,125.76,125.75,9.81]
[1725684881824,11.1788,125.82,125.75,9.81]
[1725684882029,3.9765,125.77,125.74,3.9773]
[1725684882328,1.3688,125.82,125.76,9.81]
[1725684882519,0.69065555,125.81,125.76,9.81]
[1725684882720,0.69065555,125.81,125.78,9.81]
[1725684883125,1.3688,125.82,125.78,9.81]
[1725684883326,0.69057968,125.81,125.78,9.81]
[1725684883524,3.9758,125.79,125.78,9.81]
[1725684890828,3.9758,125.8,125.78,9.81]
[1725684891031,13.83441471,125.84,125.78,9.81]
[1725684891428,0.6905868,125.83,125.78,9.81]
[1725684891833,3.9758,125.79,125.78,9.81]
[1725684892738,4.02441471,125.84,125.78,9.81]
[1725684892926,4.02441471,125.84,125.79,9.81]
[1725684892927,0.69057799,125.83,125.79,9.81]
[1725684893526,3.9754,125.81,125.79,9.81]
[1725684894834,1.3852,125.85,125.8,9.81]
[1725684894835,3.9751,125.82,125.8,9.81]
[1725684900135,3.9747,125.83,125.8,9.81]
[1725684901037,3.9747,125.83,125.82,9.81]
[1725684901235,3.9744,125.84,125.82,9.81]
[1725684903038,9.81,125.89,125.82,9.81]
[1725684903230,0.69010974,125.88,125.82,9.81]
[1725684903430,0.69011185,125.87,125.82,9.81]
[1725684903637,0.69011185,125.86,125.82,9.81]
[1725684903831,9.81,125.89,125.82,9.81]
[1725684904034,0.69011053,125.88,125.82,9.81]
[1725684904234,0.69011053,125.88,125.83,9.81]
[1725684904434,2.6389,125.9,125.83,9.81]
[1725684904435,3.9741,125.85,125.83,9.81]
[1725684907437,3.9738,125.86,125.83,9.81]
[1725684907635,12.4489,125.9,125.83,9.81]
[1725684907938,0.69002232,125.89,125.83,9.81]
[1725684908941,3.9739,125.85,125.83,9.81]
[1725684910338,3.9737,125.86,125.83,13.7845]
[1725684910532,3.9737,125.86,125.85,9.81]
[1725684912942,1.3451,125.9,125.78,4.0924]
[1725684913147,0.69001725,125.89,125.84,9.81]
[1725684913545,3.9738,125.86,125.84,9.81]
[1725684914641,1.3451,125.9,125.84,9.81]
[1725684914946,0.690022,125.89,125.84,9.81]
[1725684915540,3.9739,125.86,125.84,9.81]
[1725684917348,1.3451,125.9,125.78,4.0924]
[1725684917547,10.50002368,125.89,125.82,9.81]
[1725684917749,0.69002368,125.88,125.82,9.81]
[1725684917950,2.04022368,125.88,125.82,9.81]
[1725684918149,1.3502,125.88,125.82,9.81]
[1725684918344,3.9745,125.84,125.82,9.81]
[1725684918751,1.3502,125.88,125.8,3.9753]
[1725684918958,10.50017343,125.87,125.81,9.81]
[1725684919148,0.69017343,125.86,125.81,9.81]
[1725684919348,3.9748,125.83,125.81,9.81]
[1725684920053,4.02910229,125.85,125.81,9.81]
[1725684920250,0.69033554,125.84,125.81,9.81]
[1725684920451,3.99984576,125.84,125.78,2.7669]
[1725684920750,11.1373,125.86,125.79,9.81]
[1725684920949,0.6903747,125.85,125.79,9.81]
[1725684921154,3.9751,125.82,125.79,9.81]
[1725684921549,3.92469955,125.84,125.8,9.81]
[1725684921853,3.9751,125.82,125.8,9.81]
[1725684922550,1.3273,125.86,125.8,9.81]
[1725684922751,0.69033768,125.85,125.82,9.81]
[1725684922947,4.69256903,125.85,125.82,9.81]
[1725684923152,3.9746,125.83,125.82,9.81]
[1725684928359,3.9743,125.84,125.82,9.81]
[1725684928562,3.9743,125.84,125.83,9.81]
[1725684935253,1.3502,125.88,125.83,9.81]
[1725684935458,0.69017155,125.87,125.83,9.81]
[1725684936062,3.9742,125.85,125.83,9.81]
[1725684936459,1.3502,125.88,125.83,9.81]
[1725684936663,0.69017027,125.87,125.83,9.81]
[1725684937062,0.69017027,125.87,125.8,3.9753]
[1725684937262,0.69017027,125.87,125.81,9.81]
[1725684937468,0.69017027,125.87,125.8,3.9753]
[1725684937668,0.69017027,125.87,125.81,9.81]
[1725684937871,0.69017027,125.87,125.8,3.9753]
[1725684938064,0.69017027,125.87,125.82,9.81]
[1725684938275,0.69017027,125.87,125.83,9.81]
[1725684939170,3.9743,125.84,125.83,9.81]
[1725684941079,3.9749,125.83,125.82,9.81]
[1725684943978,3.9749,125.83,125.79,5.3184]
[1725684944179,3.98211581,125.85,125.81,9.81]
[1725684944381,0.69026869,125.84,125.81,9.81]
[1725684944577,4.05558478,125.85,125.81,9.81]
[1725684944778,3.9748,125.83,125.81,9.81]
[1725684946081,4.01224994,125.85,125.81,9.81]
[1725684946280,0.69026862,125.84,125.81,9.81]
[1725684946585,3.9748,125.83,125.81,9.81]
[1725684950582,3.88741378,125.85,125.81,9.81]
[1725684950778,1.3502,125.88,125.81,9.81]
[1725684950983,0.69025032,125.87,125.81,9.81]
[1725684951185,3.9747,125.83,125.81,9.81]
[1725684956085,3.9747,125.83,125.79,5.3184]
[1725684956286,3.9747,125.83,125.82,9.81]
[1725684956484,3.9744,125.84,125.82,9.81]
[1725684956681,3.9744,125.84,125.83,9.81]
[1725684962092,3.9741,125.85,125.83,9.81]
[1725684963689,3.9743,125.84,125.81,3.9752]
[1725684963894,3.9743,125.84,125.83,9.81]
[1725684966295,3.9741,125.85,125.83,9.81]
[1725684977208,3.9742,125.84,125.79,1.3427]
[1725684977408,1.3502,125.88,125.82,9.81]
[1725684977599,0.6900046,125.87,125.82,9.81]
[1725684977907,3.9741,125.85,125.83,9.81]
[1725684980010,3.9738,125.86,125.83,9.81]
[1725684980308,3.9738,125.86,125.85,9.81]
[1725684985802,3.9732,125.88,125.85,9.81]
[1725684985998,2.6582,125.9,125.85,9.81]
[1725684986203,0.68976863,125.89,125.85,9.81]
[1725684987407,3.9734,125.87,125.85,9.81]
[1725684988308,3.9734,125.87,125.86,9.81]
[1725684989611,3.9738,125.86,125.8,12.49933074]
[1725684989815,3.9738,125.86,125.81,11.32617673]
[1725684990009,3.9738,125.86,125.83,9.81]
[1725684990915,3.9738,125.86,125.82,3.9746]
[1725684991216,3.9738,125.86,125.83,9.81]
[1725684996019,3.9734,125.87,125.85,9.81]
[1725684996216,5.33915988,125.92,125.87,9.81]
[1725684996416,0.68976374,125.91,125.87,9.81]
[1725684997013,3.973,125.88,125.87,9.81]
[1725685000714,3.973,125.88,125.84,3.974]
[1725685000918,3.9733,125.87,125.85,9.81]
[1725685001125,9.81,125.91,125.83,1.3878]
[1725685001317,3.9741,125.85,125.79,9.26282163]
[1725685001511,3.9741,125.85,125.83,9.81]
[1725685003515,3.9738,125.86,125.79,2.6512]
[1725685003827,3.9738,125.86,125.84,9.81]
[1725685005124,2.7142,125.89,125.8,5.30616912]
[1725685005320,2.7142,125.89,125.84,9.81]
[1725685006326,3.9735,125.87,125.84,9.81]
[1725685009123,3.9737,125.86,125.84,9.81]
[1725685009323,3.9737,125.86,125.82,3.9747]
[1725685009526,3.9737,125.86,125.84,9.81]
[1725685009724,3.9741,125.85,125.81,3.975]
[1725685009918,3.9741,125.85,125.83,9.81]
[1725685010624,3.9737,125.86,125.83,9.81]
[1725685011726,3.9739,125.85,125.83,9.81]
[1725685011932,4.01232853,125.85,125.82,9.81]
[1725685012130,3.9744,125.84,125.82,9.81]
[1725685013530,3.9744,125.84,125.8,3.9753]
[1725685013738,1.4035,125.88,125.83,9.81]
[1725685014030,29.52690148,125.95,125.87,9.81]
[1725685014333,29.52690148,125.95,125.9,9.81]
[1725685014334,3.9715,125.93,125.9,9.81]
[1725685014535,0.68960404,125.92,125.9,9.81]
[1725685015232,0.68960404,125.92,125.87,1.3552]
[1725685015233,0.68960404,125.92,125.91,9.81]
[1725685015543,135.58143253,125.98,125.91,9.81]
[1725685015726,10.49938657,125.97,125.91,9.81]
[1725685015935,0.68938657,125.96,125.91,9.81]
[1725685016234,3.9713,125.94,125.91,9.81]
[1725685016430,0.68938657,125.93,125.91,9.81]
[1725685016934,3.9713,125.94,125.91,9.81]
[1725685017135,0.6893758,125.93,125.91,9.81]
[1725685017725,0.6893758,125.93,125.9,9.81]
[1725685017929,0.6893758,125.92,125.9,9.81]
[1725685018125,1.4268,125.95,125.9,9.81]
[1725685018330,0.68942251,125.94,125.88,9.81]
[1725685018628,1.99272251,125.94,125.88,9.81]
[1725685018832,0.68942251,125.93,125.88,9.81]
[1725685019027,3.9722,125.91,125.88,9.81]
[1725685021835,3.9722,125.91,125.87,6.6509]
[1725685022040,3.9722,125.91,125.88,9.81]
[1725685028729,3.9724,125.9,125.88,9.81]
[1725685034146,3.9724,125.9,125.89,9.81]
[1725685036242,3.9721,125.91,125.89,9.81]
[1725685036443,1.3023,125.94,125.89,9.81]
[1725685036639,0.68938529,125.93,125.89,9.81]
[1725685037349,3.9719,125.92,125.89,13.7825]
[1725685037547,3.9719,125.92,125.91,9.81]
[1725685037845,4.66128609,125.92,125.91,9.81]
[1725685038046,29.52690148,125.99,125.91,13.782]
[1725685038245,29.52690148,125.99,125.92,9.81]
[1725685038246,0.68935059,125.97,125.92,9.81]
[1725685038640,0.68935059,125.97,125.91,13.782]
[1725685039147,3.971,125.95,125.91,13.782]
[1725685039341,0.68935059,125.94,125.91,13.782]
[1725685039734,0.6892875,125.93,125.91,13.782]
[1725685039948,3.971,125.95,125.91,13.782]
[1725685040154,0.68928836,125.94,125.91,13.782]
[1725685040640,0.68928836,125.94,125.93,9.81]
[1725685040842,0.68928836,125.97,125.93,9.81]
[1725685041041,0.68928836,125.96,125.94,9.81]
[1725685041249,4.0241,126.0,125.94,9.81]
[1725685041546,0.68899523,125.99,125.93,9.81]
[1725685041749,3.9705,125.96,125.93,13.7814]
[1725685041949,3.89544105,125.98,125.93,13.7814]
[1725685042243,4.6594507,125.97,125.93,13.7814]
[1725685042450,0.6890507,125.96,125.93,13.7814]
[1725685042644,3.9704,125.97,125.93,13.7814]
[1725685042850,0.68901644,125.96,125.93,13.7814]
[1725685043549,3.9704,125.97,125.93,13.7814]
[1725685043853,4.65951714,125.96,125.93,13.7814]
[1725685044042,3.9705,125.96,125.93,13.7814]
[1725685044239,29.52690148,126.03,125.95,9.81]
[1725685044444,48.3082504,126.05,125.94,4.03981057]
[1725685044445,0.68888039,126.02,125.94,4.03981057]
[1725685044646,0.68888039,126.01,125.96,9.81]
[1725685044841,0.68888039,126.0,125.96,9.81]
[1725685045047,0.68888039,125.99,125.94,3.88886387]
[1725685045347,9.81,126.03,125.96,9.81]
[1725685045544,0.68873016,126.02,125.96,9.81]
[1725685045946,9.81,126.01,125.94,3.97943189]
[1725685046146,0.68873016,126.0,125.95,9.81]
[1725685046344,3.9701,125.98,125.95,9.81]
[1725685046749,9.81,126.01,125.89,135.88981844]
[1725685047048,3.9707,125.96,125.92,9.81]
[1725685047346,3.9707,125.96,125.93,9.81]
[1725685047953,3.9702,125.97,125.93,13.7814]
[1725685048449,3.9706,125.96,125.93,9.81]
[1725685053553,3.9706,125.96,125.94,9.81]
[1725685053954,9.81,126.01,125.94,9.81]
[1725685054155,0.68888534,126.0,125.94,9.81]
[1725685055054,3.97,125.98,125.94,9.81]
[1725685055649,0.6888857,125.97,125.94,9.81]
[1725685056661,2.7157,126.04,125.96,9.81]
[1725685056954,0.68871753,126.03,125.96,9.81]
[1725685058059,3.9694,126.0,125.96,9.81]
[1725685058263,0.68871753,125.99,125.96,13.7803]
[1725685058561,9.81,126.03,125.96,13.7803]
[1725685058761,0.68868166,126.02,125.96,13.7803]
[1725685059464,3.9693,126.0,125.96,13.7803]
[1725685059667,0.68868091,125.99,125.96,13.7803]
[1725685060663,3.9693,126.0,125.96,13.7803]
[1725685060866,0.68868084,125.99,125.96,13.7803]
[1725685061567,0.68868084,125.99,125.98,9.81]
[1725685061865,3.9689,126.01,125.98,9.81]
[1725685062064,0.68865987,126.0,125.98,9.81]
[1725685063667,3.9689,126.01,125.98,9.81]
[1725685063866,0.68864332,126.0,125.98,9.81]
[1725685066871,3.9689,126.01,125.98,9.81]
[1725685074375,3.9689,126.01,125.98,13.7797]
[1725685075072,3.9689,126.01,125.98,9.81]
[1725685077980,4.01789817,126.05,126.0,9.81]
[1725685078277,0.68845717,126.04,126.02,9.81]
[1725685078477,3.90091497,126.06,126.03,9.81]
[1725685078777,3.90091497,126.06,125.99,1.3165]
[1725685078778,13.9943,126.11,126.05,9.81]
[1725685078978,3.9676,126.06,126.05,9.81]
[1725685079181,4.65562456,126.06,126.05,9.81]
[1725685079480,4.65562456,126.06,126.02,9.81]
[1725685079481,3.9678,126.05,126.02,9.81]
[1725685079677,7.88102195,126.05,126.02,9.81]
[1725685079866,3.9678,126.05,126.02,9.81]
[1725685080067,3.9674,126.06,126.02,13.7785]
[1725685080266,3.9674,126.06,126.02,9.81]
[1725685080478,4.1843,126.11,126.02,9.81]
[1725685080779,3.9678,126.05,126.02,9.81]
[1725685081672,3.968,126.04,126.02,9.81]
[1725685082274,4.1843,126.11,126.02,9.81]
[1725685082478,9.81,126.09,126.02,9.81]
[1725685082680,3.9681,126.04,126.02,9.81]
[1725685082877,3.95348519,126.04,126.0,1.4164]
[1725685083068,9.81,126.07,125.99,5.25331387]
[1725685083273,3.9685,126.03,126.0,9.81]
[1725685084278,3.9685,126.03,126.01,9.81]
[1725685084682,37.58926878,126.11,126.01,13.7788]
[1725685084683,8.0623673,126.11,126.01,13.7788]
[1725685084880,9.81,126.09,126.01,9.81]
[1725685085077,0.6880402,126.08,126.01,9.81]
[1725685085386,3.9682,126.04,126.01,9.81]
[1725685085588,7.85291801,126.04,126.01,9.81]
[1725685086081,3.9682,126.04,126.01,9.81]
[1725685086284,7.88309057,126.04,126.01,9.81]
[1725685086485,3.9684,126.03,125.99,9.22271387]
[1725685086785,3.91489057,126.04,125.99,5.25331387]
[1725685087085,3.9684,126.03,126.0,9.81]
[1725685087789,3.9686,126.02,126.0,9.81]
[1725685088290,3.9684,126.03,126.0,9.81]
[1725685090187,3.9684,126.03,126.01,9.81]
[1725685090387,2.7378,126.06,126.01,9.81]
[1725685090591,0.68801336,126.05,126.01,9.81]
[1725685090789,0.68801336,126.05,126.01,13.7787]
[1725685090990,3.9679,126.05,126.01,13.7787]
[1725685091195,2.7378,126.06,126.01,13.7787]
[1725685091489,0.6880151,126.05,126.01,13.7787]
[1725685092288,3.9679,126.04,126.01,13.7787]
[1725685092680,1.3043,126.1,126.02,3.9684]
[1725685092995,3.9676,126.06,126.02,3.9684]
[1725685093286,0.68797125,126.05,126.02,3.9684]
[1725685093492,3.9675,126.06,126.02,3.9684]
[1725685093693,0.68800554,126.05,126.02,3.9684]
[1725685093896,3.9675,126.06,126.02,3.9684]
[1725685094085,0.68800555,126.05,126.02,3.9684]
[1725685094894,3.9675,126.06,126.02,3.9684]
[1725685095195,4.65570547,126.05,126.02,3.9684]
[1725685095394,3.9677,126.05,126.02,3.9684]
[1725685098287,3.9677,126.05,126.01,13.7787]
[1725685102189,9.81,126.07,126.0,3.969]
[1725685102498,0.68799505,126.06,126.0,9.81]
[1725685102710,0.68799505,126.06,126.0,13.7791]
[1725685102711,3.9683,126.03,126.0,13.7791]
[1725685103000,7.9678327,126.03,126.0,13.7791]
[1725685103796,4.046,126.1,126.01,3.9687]
[1725685103797,3.968,126.04,126.01,3.9687]
[1725685104801,3.9677,126.05,126.02,3.9685]
[1725685107205,4.046,126.1,125.99,2.634]
[1725685107206,3.9662,126.1,126.04,13.7778]
[1725685107511,319.54271843,126.18,126.09,9.81]
[1725685107512,4.0118,126.15,126.09,9.81]
[1725685107803,0.68744058,126.14,126.09,9.81]
[1725685107999,3.92309221,126.13,126.09,9.81]
[1725685108207,0.687438,126.12,126.1,9.81]
[1725685108406,1.4225,126.18,126.1,9.81]
[1725685108698,10.49711375,126.17,126.1,9.81]
[1725685108901,0.68711375,126.16,126.05,2.6531]
[1725685109098,9.81,126.13,126.06,9.81]
[1725685109298,3.96436703,126.15,126.1,9.81]
[1725685109493,3.9653,126.13,126.1,9.81]
[1725685109694,4.0286605,126.13,126.09,9.81]
[1725685110004,9.81,126.16,126.09,9.81]
[1725685110193,0.68711785,126.15,126.09,9.81]
[1725685110400,3.9187266,126.14,126.09,9.81]
[1725685110599,4.65241785,126.13,126.09,9.81]
[1725685110802,3.9653,126.13,126.09,9.81]
[1725685110999,9.81,126.16,126.09,9.81]
[1725685111204,0.6870944,126.15,126.09,9.81]
[1725685112093,3.9656,126.12,126.09,9.81]
[1725685112600,13.68639061,126.16,126.09,9.81]
[1725685112801,9.81,126.13,126.06,9.81]
[1725685113006,11.89850091,126.12,126.06,9.81]
[1725685113207,0.68720091,126.11,126.06,9.81]
[1725685113405,3.9669,126.08,126.06,9.81]
[1725685113710,12.6241,126.12,126.05,9.81]
[1725685113711,2.8141,126.12,126.05,9.81]
[1725685113895,3.967,126.07,126.05,9.81]
[1725685114300,3.967,126.07,126.04,147.94510778]
[1725685114506,3.967,126.07,126.04,157.75510778]
[1725685115305,3.9666,126.09,126.04,157.75510778]
[1725685115516,3.9666,126.09,126.06,9.81]
[1725685119611,3.9666,126.09,126.07,9.81]
[1725685120310,3.9666,126.09,126.05,3.9676]
[1725685120511,13.69248056,126.11,126.03,3.87361354]
[1725685120809,0.68741366,126.1,126.04,9.81]
[1725685121010,3.97175579,126.09,126.03,7.87200661]
[1725685121310,3.89795493,126.1,126.05,9.81]
[1725685121616,9.81,126.11,126.05,9.81]
[1725685121617,3.967,126.08,126.05,9.81]
[1725685121817,3.88129022,126.11,126.05,9.81]
[1725685122006,12.6241,126.12,126.05,9.81]
[1725685122007,0.68750706,126.1,126.05,9.81]
[1725685122209,3.9672,126.07,126.05,9.81]
[1725685124514,3.9669,126.08,126.05,9.81]
[1725685125311,3.9669,126.08,126.07,9.81]
[1725685127714,3.967,126.07,126.06,9.81]
[1725685128417,3.9668,126.08,126.06,9.81]
[1725685131118,3.95809867,126.11,126.07,9.81]
[1725685131319,3.95809867,126.11,126.08,9.81]
[1725685132316,3.9661,126.1,126.08,9.81]
[1725685135526,3.9664,126.09,126.06,3.967]
[1725685135728,3.9664,126.09,126.07,9.81]
[1725685141926,3.9664,126.09,126.05,3.9675]
[1725685142127,3.9664,126.09,126.06,9.81]
[1725685142328,3.9664,126.09,126.05,13.7775]
[1725685142833,3.9667,126.08,126.05,13.7775]
[1725685145229,3.94525303,126.1,126.05,9.81]
[1725685145426,9.81,126.11,126.05,9.81]
[1725685145822,3.9669,126.08,126.05,9.81]
[1725685146921,3.967,126.07,126.04,7.86871967]
[1725685147127,13.75684236,126.11,126.04,17.67871967]
[1725685147528,3.9669,126.08,126.04,17.67871967]
[1725685148324,13.75684236,126.11,126.03,3.9681]
[1725685148520,0.68750919,126.1,126.02,130.86957297]
[1725685148827,10.49750919,126.1,126.03,9.81]
[1725685149027,0.68750919,126.09,126.03,9.81]
[1725685149222,3.9674,126.06,126.03,9.81]
[1725685151729,3.9674,126.06,126.02,134.83797297]
[1725685151730,13.83342888,126.1,126.02,134.83797297]
[1725685151922,0.68761754,126.09,126.03,9.81]
[1725685152129,10.49761754,126.09,126.03,9.81]
[1725685152329,3.9677,126.05,126.03,9.81]
[1725685153135,7.84665023,126.05,126.03,9.81]
[1725685157137,2.8141,126.12,126.04,9.81]
[1725685157330,2.8141,126.12,126.07,9.81]
[1725685157331,0.68733978,126.11,126.07,9.81]
[1725685157534,4.00326061,126.1,126.07,9.81]
[1725685157737,7.96946061,126.1,126.07,9.81]
[1725685158839,3.9664,126.09,126.06,13.7771]
[1725685161237,3.9664,126.09,126.06,9.81]
[1725685162841,4.00326061,126.1,126.06,9.81]
[1725685162842,7.96936061,126.1,126.06,9.81]
[1725685163237,7.96936061,126.1,126.06,13.7771]
[1725685163437,3.9665,126.09,126.03,1.4095]
[1725685163646,3.9665,126.09,126.05,9.81]
[1725685163847,3.9665,126.09,126.05,13.7774]
[1725685166048,3.9667,126.08,126.05,13.7774]
[1725685168847,3.9667,126.08,126.05,3.9674]
[1725685169047,3.9667,126.08,126.05,13.7774]
[1725685171852,3.9667,126.08,126.05,3.9674]
[1725685172048,280.3255963,126.17,126.07,3.9668]
[1725685172350,0.68737955,126.13,126.09,9.81]
[1725685172652,1.3846,126.15,126.1,9.81]
[1725685172853,0.68711595,126.14,126.1,9.81]
[1725685173048,29.4455963,126.17,126.09,3.93525214]
[1725685173251,0.68690897,126.16,126.1,4.1982]
[1725685173453,0.68690897,126.16,126.13,9.81]
[1725685173856,0.68690897,126.16,126.14,3.9646]
[1725685174154,29.4455963,126.17,126.13,9.81]
[1725685174356,29.4455963,126.17,126.14,9.81]
[1725685174553,74.03417474,126.21,126.17,3.9637]
[1725685174554,9.81,126.21,126.17,3.9637]
[1725685174752,0.68661867,126.2,126.17,3.9637]
[1725685175050,0.68660338,126.19,126.14,9.81]
[1725685175257,1.3073,126.22,126.15,9.81]
[1725685175447,0.68654671,126.21,126.15,9.81]
[1725685175660,0.68654671,126.21,126.19,3.9632]
[1725685175850,0.68654671,126.21,126.15,9.81]
[1725685176055,0.68654671,126.21,126.17,9.81]
[1725685176263,0.68654671,126.21,126.2,3.9629]
[1725685176656,0.68654671,126.22,126.2,3.9629]
[1725685176961,0.68654671,126.21,126.2,3.9629]
[1725685177157,0.68654671,126.23,126.2,3.9629]
[1725685177461,0.68654671,126.23,126.21,3.9626]
[1725685179251,16.49987053,126.24,126.21,3.9626]
[1725685179454,0.68614542,126.23,126.21,3.9626]
[1725685179658,0.68614542,126.23,126.2,3.9628]
[1725685181559,0.68614542,126.23,126.21,9.81]
[1725685181766,4.02784083,126.25,126.16,2.794]
[1725685182061,0.68599064,126.24,126.2,9.81]
[1725685182261,4.01832625,126.25,126.21,3.9623]
[1725685182470,0.68598713,126.24,126.21,3.9623]
[1725685182766,0.68598713,126.24,126.2,3.9628]
[1725685183368,0.68598713,126.24,126.2,9.81]
[1725685183668,13.7708,126.27,126.22,3.9621]
[1725685183857,4.69121935,126.26,126.22,3.9621]
[1725685184058,0.68597566,126.25,126.22,3.9621]
[1725685184263,0.68597566,126.25,126.23,3.9619]
[1725685184568,9.81,126.27,126.23,3.9619]
[1725685184569,0.68597566,126.24,126.23,3.9619]
[1725685185055,0.68597566,126.26,126.23,3.9619]
[1725685185257,0.68597566,126.25,126.23,13.7719]
[1725685185466,0.68597566,126.24,126.23,13.7719]
[1725685185766,17.72881587,126.28,126.24,3.9616]
[1725685185967,0.68591853,126.27,126.24,3.9616]
[1725685187461,0.68591853,126.27,126.23,13.7717]
[1725685187861,0.68591853,126.27,126.23,9.81]
[1725685188167,0.68584564,126.26,126.24,3.9616]
[1725685188358,0.68584564,126.25,126.24,3.9616]
[1725685188561,0.68584564,126.27,126.24,3.9616]
[1725685188763,9.81,126.3,126.24,9.81]
[1725685188958,0.68553877,126.29,126.24,9.81]
[1725685189167,10.49553877,126.29,126.23,9.81]
[1725685189360,0.68553877,126.28,126.24,3.9616]
[1725685190965,10.49553877,126.28,126.22,1.3806]
[1725685191161,9.81,126.26,126.19,9.81]
[1725685191563,9.81,126.26,126.21,3.9624]
[1725685191564,13.7713,126.26,126.21,3.9624]
[1725685192063,17.71939374,126.26,126.21,3.9624]
[1725685192263,1.37149832,126.25,126.21,3.9624]
[1725685192474,0.68574893,126.25,126.21,3.9624]
[1725685192866,4.64714893,126.25,126.21,3.9624]
[1725685195964,0.68574893,126.25,126.21,9.81]
[1725685196572,4.64724893,126.25,126.21,9.81]
[1725685199175,4.64724893,126.25,126.2,9.81]
[1725685200287,3.9617,126.24,126.2,9.81]
[1725685200581,0.68574893,126.25,126.2,9.81]
[1725685200782,4.64734893,126.25,126.2,9.81]
[1725685201284,4.64734893,126.25,126.2,13.7728]
[1725685201685,3.9617,126.24,126.19,3.963]
[1725685201886,4.0121,126.29,126.2,9.81]
[1725685202087,10.49573042,126.28,126.22,9.81]
[1725685202284,0.68573042,126.27,126.22,9.81]
[1725685202483,3.9612,126.26,126.22,9.81]
[1725685202685,5.25193795,126.29,126.23,4.01150419]
[1725685202892,0.68572655,126.28,126.25,9.81]
[1725685203290,9.81,126.33,126.27,9.81]
[1725685203589,3.9595,126.31,126.27,9.81]
[1725685203791,0.68555034,126.3,126.27,9.81]
[1725685206182,4.64535034,126.3,126.25,9.81]
[1725685206485,4.64535034,126.3,126.24,17.8125]
[1725685206486,3.9598,126.3,126.24,17.8125]
[1725685206688,13.7905916,126.31,126.24,13.851]
[1725685206689,4.64552822,126.29,126.24,13.851]
[1725685206985,3.9601,126.29,126.24,13.851]
[1725685209185,3.9601,126.29,126.24,17.8126]
[1725685210286,3.9605,126.28,126.24,12.4577]
[1725685213094,3.9609,126.27,126.24,1.3351]
[1725685213289,3.9805916,126.31,126.22,3.9621]
[1725685213591,9.81,126.28,126.21,9.81]
[1725685213788,3.9614,126.25,126.21,9.81]
[1725685213985,9.81,126.28,126.21,9.81]
[1725685214187,0.6857397,126.27,126.21,9.81]
[1725685215094,9.81,126.26,126.19,9.81]
[1725685215291,0.6857397,126.25,126.19,9.81]
[1725685215496,4.72378962,126.25,126.19,9.81]
[1725685215794,1.3614,126.29,126.21,9.81]
[1725685215990,10.49579423,126.28,126.22,9.81]
[1725685216190,0.68579423,126.27,126.22,9.81]
[1725685217496,3.9612,126.26,126.22,9.81]
[1725685219196,12.6211,126.3,126.23,13.77672028]
[1725685219398,0.6857346,126.29,126.23,13.77672028]